fUSD/lending_fUSD_20250608
["ID","MTS","AMOUNT","RATE_DAILY","PERIOD"]
[365037354,1749420635053,-1396.94,0.00018329,2]
[365037356,1749420635062,-480.0,0.00018329,2]
[365037358,1749420635073,-6273.64,0.00018329,2]
[365037360,1749420635082,-480.0,0.00018329,2]
[365037362,1749420635092,-1338.26,0.00018329,2]
[365037364,1749420635102,-15380.32,0.00018329,2]
[365037366,1749420635112,-480.0,0.00018329,2]
[365037368,1749420635121,-390.08378115,0.00018329,2]
[365037370,1749420635131,-480.0,0.00018329,2]
[365037372,1749420635140,-483.57,0.00018329,2]
[365037374,1749420635149,-154.50231105,0.00018346,2]
[365037376,1749420635159,-195.98197426,0.00018346,2]
[365037378,1749420635168,-235.81,0.00018346,2]
[365037380,1749420635177,-150.0,0.0001835,2]
[365037382,1749420635187,-500.0,0.00018355,2]
[365037384,1749420635196,-500.0,0.00018355,2]
[365037386,1749420635206,-500.0,0.00018356,2]
[365037388,1749420635216,-832.39349,0.00018356,2]
[365037389,1749420635225,-832.39349,0.00018356,2]
[365037391,1749420635236,-151.0,0.00018356,2]
[365037393,1749420635245,-33957.34,0.00018356,2]
[365037395,1749420635255,-150.0,0.00018361,2]
[365037397,1749420635264,-480.0,0.00018362,2]
[365037399,1749420635274,-366.88,0.00018362,2]
[365037401,1749420635284,-480.0,0.00018362,2]
[365037403,1749420635293,-961.26,0.00018362,2]
[365037405,1749420635303,-480.0,0.00018362,2]
[365037407,1749420635312,-544.32,0.00018362,2]
[365037409,1749420635322,-480.0,0.00018362,2]
[365037411,1749420635331,-480.0,0.00018362,2]
[365037413,1749420635341,-889.8,0.00018362,2]
[365037415,1749420635351,-480.0,0.00018362,2]
[365037417,1749420635360,-480.0,0.00018362,2]
[365037419,1749420635369,-538.66,0.00018362,2]
[365037421,1749420635378,-670.51,0.00018362,2]
[365037423,1749420635388,-480.0,0.00018362,2]
[365037425,1749420635398,-480.0,0.00018362,2]
[365037427,1749420635407,-480.0,0.00018362,2]
[365037429,1749420635417,-565.9,0.00018362,2]
[365037431,1749420635427,-480.0,0.00018362,2]
[365037433,1749420635439,-480.0,0.00018362,2]
[365037435,1749420635449,-1021.73,0.00018362,2]
[365037437,1749420635458,-480.0,0.00018362,2]
[365037439,1749420635467,-154.50231105,0.00018363,2]
[365037441,1749420635477,-195.98197426,0.00018363,2]
[365037443,1749420635487,-1419.84739616,0.00018365,2]
[365037445,1749420635503,-466.2373615,0.00018365,2]
[365037447,1749420635515,-10623.8705,0.00018365,2]
[365037449,1749420635526,-1706.9000001,0.00018365,2]
[365037646,1749420637538,-500.0,0.00018107,2]
[365037648,1749420637550,-143.79999965,0.00018134,2]
[365037662,1749420637699,-455.53389395,0.00018075,2]
[365037827,1749420639815,-200.0,0.00017999,2]
[365037830,1749420639825,-44.46610605,0.00018075,2]
[365037831,1749420639835,-160.80936217,0.00018075,2]
[365037836,1749420639872,-39.19063783,0.00018075,2]
[365037838,1749420639882,-500.0,0.00018075,2]
[365037840,1749420639891,-519.9573932,0.00018075,2]
[365037842,1749420639901,-193.57182245,0.00018075,2]
[365037858,1749420640046,-306.42817755,0.00018075,2]
[365037860,1749420640055,-417.69800675,0.00018075,2]
[365037862,1749420640065,-172.12376806,0.00018075,2]
[365038093,1749420642561,-327.87623194,0.00018075,2]
[365038095,1749420642570,-27.14114432,0.00018075,2]
[365038123,1749420642838,-335.30668622,0.00018075,2]
[365038125,1749420642854,-480.0,0.00018085,2]
[365038126,1749420642867,-356.20000035,0.00018134,2]
[365038128,1749420642877,-150.0,0.00018152,2]
[365038130,1749420642886,-500.0,0.00018162,2]
[365038132,1749420642896,-881.16,0.00018165,2]
[365038134,1749420642905,-480.0,0.00018165,2]
[365038136,1749420642915,-500.0,0.00018189,2]
[365038138,1749420642924,-500.0,0.00018217,2]
[365038140,1749420642934,-500.0,0.00018244,2]
[365038142,1749420642943,-480.0,0.00018249,2]
[365038144,1749420642953,-500.0,0.00018271,2]
[365038146,1749420642962,-500.0,0.00018299,2]
[365038148,1749420642972,-500.0,0.00018326,2]
[365038150,1749420642981,-881.16,0.00018329,2]
[365038152,1749420642993,-480.0,0.00018329,2]
[365038154,1749420643002,-500.0,0.00018354,2]
[365038156,1749420643012,-1183.02301066,0.00018365,2]
[365038158,1749420643022,-1735.6589913,0.0001837,2]
[365038160,1749420643031,-587.537604,0.0001837,2]
[365038162,1749420643040,-150.0,0.00018372,2]
[365038164,1749420643049,-154.50231105,0.00018379,2]
[365038165,1749420643058,-195.98197426,0.00018379,2]
[365038167,1749420643068,-500.0,0.00018381,2]
[365038169,1749420643078,-150.0,0.00018381,2]
[365038171,1749420643087,-500.0,0.00018383,2]
[365038173,1749420643097,-300.0,0.00018391,2]
[365038175,1749420643106,-150.0,0.00018393,2]
[365038177,1749420643116,-150.0,0.00018393,2]
[365038179,1749420643125,-150.0,0.00018393,2]
[365038181,1749420643135,-154.50231105,0.00018396,2]
[365038183,1749420643144,-195.98197426,0.00018396,2]
[365038185,1749420643153,-163.65,0.000184,2]
[365038187,1749420643163,-193.80817868,0.00018401,2]
[365038189,1749420643173,-500.0,0.00018408,2]
[365038191,1749420643182,-500.0,0.00018411,2]
[365038192,1749420643191,-832.39349,0.00018411,2]
[365038194,1749420643201,-233.397342,0.00018411,2]
[365038196,1749420643210,-19943.41343525,0.00018411,2]
[365038198,1749420643220,-299.20156299,0.00018413,2]
[365038200,1749420643229,-154.50231105,0.00018413,2]
[365038202,1749420643239,-195.98197426,0.00018413,2]
[365038204,1749420643249,-979.73,0.00018414,2]
[365038206,1749420643258,-480.0,0.00018414,2]
[365038208,1749420643268,-480.0,0.00018414,2]
[365038210,1749420643277,-964.33,0.00018414,2]
[365038212,1749420643287,-480.0,0.00018414,2]
[365038214,1749420643296,-480.0,0.00018414,2]
[365038216,1749420643305,-1390.97,0.00018414,2]
[365038218,1749420643315,-480.0,0.00018414,2]
[365038220,1749420643324,-150.0,0.00018414,2]
[365038222,1749420643333,-150.0,0.00018425,2]
[365038224,1749420643343,-154.50231105,0.0001843,2]
[365038226,1749420643352,-195.98197426,0.0001843,2]
[365038228,1749420643362,-150.0,0.00018433,2]
[365038230,1749420643372,-436.22307044,0.00018436,2]
[365038232,1749420643382,-150.0,0.00018436,2]
[365038234,1749420643392,-500.0,0.00018438,2]
[365038236,1749420643401,-150.0,0.0001844,2]
[365038238,1749420643411,-154.50231105,0.00018447,2]
[365038240,1749420643420,-195.98197426,0.00018447,2]
[365038242,1749420643429,-150.0,0.00018457,2]
[365038243,1749420643439,-150.0,0.00018457,2]
[365038245,1749420643451,-150.0,0.00018457,2]
[365038247,1749420643460,-154.50231105,0.00018464,2]
[365038249,1749420643470,-195.98197426,0.00018464,2]
[365038251,1749420643481,-500.0,0.00018466,2]
[365038271,1749420643675,-150.0,0.00018473,2]
[365038273,1749420643684,-150.0,0.00018479,2]
[365038275,1749420643693,-154.50231105,0.00018481,2]
[365038277,1749420643703,-195.98197426,0.00018481,2]
[365038279,1749420643712,-150.0,0.00018485,2]
[365038281,1749420643721,-150.0,0.00018489,2]
[365038283,1749420643730,-500.0,0.00018493,2]
[365038285,1749420643740,-480.0,0.00018494,2]
[365038287,1749420643749,-1396.94,0.00018494,2]
[365038289,1749420643763,-480.0,0.00018494,2]
[365038291,1749420643773,-6273.64,0.00018494,2]
[365038293,1749420643783,-480.0,0.00018494,2]
[365038295,1749420643792,-1338.26,0.00018494,2]
[365038297,1749420643802,-15380.32,0.00018494,2]
[365038299,1749420643812,-480.0,0.00018494,2]
[365038301,1749420643822,-480.0,0.00018494,2]
[365038303,1749420643831,-483.57,0.00018494,2]
[365038305,1749420643841,-881.16,0.00018494,2]
[365038307,1749420643850,-480.0,0.00018494,2]
[365038309,1749420643860,-154.50231105,0.00018498,2]
[365038311,1749420643868,-195.98197426,0.00018498,2]
[365038313,1749420643880,-597.82985063,0.000185,2]
[365038315,1749420643889,-3345.49,0.000185,2]
[365038317,1749420643898,-1507.06,0.000185,2]
[365038319,1749420643907,-150.0,0.000185,2]
[365038320,1749420643917,-193.80817868,0.00018505,2]
[365038322,1749420643927,-16837.3138707,0.00018508,2]
[365038324,1749420643936,-154.50231105,0.00018514,2]
[365038326,1749420643946,-195.98197426,0.00018514,2]
[365038328,1749420643955,-299.20156299,0.00018519,2]
[365038330,1749420643965,-212.23253853,0.0001852,2]
[365038332,1749420643974,-150.0,0.00018522,2]
[365038334,1749420643986,-150.0,0.00018522,2]
[365038336,1749420643995,-150.0,0.00018522,2]
[365038338,1749420644004,-393.48,0.00018527,2]
[365038340,1749420644014,-480.0,0.00018527,2]
[365038342,1749420644023,-544.32,0.00018527,2]
[365038344,1749420644033,-480.0,0.00018527,2]
[365038346,1749420644043,-480.0,0.00018527,2]
[365038348,1749420644052,-889.8,0.00018527,2]
[365038350,1749420644061,-480.0,0.00018527,2]
[365038352,1749420644070,-480.0,0.00018527,2]
[365038354,1749420644080,-538.66,0.00018527,2]
[365038356,1749420644089,-832.39349,0.00018527,2]
[365038358,1749420644098,-670.51,0.00018527,2]
[365038360,1749420644108,-480.0,0.00018527,2]
[365038362,1749420644117,-832.39349,0.00018527,2]
[365038364,1749420644127,-480.0,0.00018527,2]
[365038366,1749420644137,-480.0,0.00018527,2]
[365038368,1749420644147,-480.0,0.00018527,2]
[365038370,1749420644156,-344.64,0.00018527,2]
[365038372,1749420644166,-1021.73,0.00018527,2]
[365038374,1749420644175,-480.0,0.00018527,2]
[365038375,1749420644185,-154.50231105,0.00018531,2]
[365038377,1749420644194,-195.98197426,0.00018531,2]
[365038379,1749420644203,-150.0,0.00018538,2]
[365038381,1749420644212,-150.0,0.00018538,2]
[365038383,1749420644221,-150.0,0.00018543,2]
[365038385,1749420644231,-154.50231105,0.00018548,2]
[365038387,1749420644241,-195.98197426,0.00018548,2]
[365038389,1749420644250,-150.0,0.00018552,2]
[365038391,1749420644259,-150.0,0.00018554,2]
[365038393,1749420644269,-15399.87826842,0.00018557,2]
[365038395,1749420644279,-154.06951412,0.00018564,2]
[365038397,1749420644288,-150.0,0.00018564,2]
[365038399,1749420644298,-154.50231105,0.00018565,2]
[365038401,1749420644307,-195.98197426,0.00018565,2]
[365038403,1749420644317,-979.73,0.00018578,2]
[365038405,1749420644326,-480.0,0.00018578,2]
[365038407,1749420644336,-480.0,0.00018578,2]
[365038409,1749420644346,-964.33,0.00018578,2]
[365038411,1749420644355,-480.0,0.00018578,2]
[365038413,1749420644364,-480.0,0.00018578,2]
[365038415,1749420644374,-1390.97,0.00018578,2]
[365038417,1749420644383,-480.0,0.00018578,2]
[365038419,1749420644394,-154.50231105,0.00018582,2]
[365038421,1749420644403,-195.98197426,0.00018582,2]
[365038423,1749420644413,-150.0,0.00018586,2]
[365038425,1749420644422,-150.0,0.00018586,2]
[365038427,1749420644432,-150.0,0.00018586,2]
[365038429,1749420644443,-150.0,0.0001859,2]
[365038431,1749420644453,-154.50231105,0.00018599,2]
[365038433,1749420644462,-195.98197426,0.00018599,2]
[365038435,1749420644471,-3345.49,0.000186,2]
[365038437,1749420644482,-1507.06,0.000186,2]
[365038439,1749420644494,-150.0,0.000186,2]
[365038441,1749420644503,-150.0,0.00018607,2]
[365038443,1749420644513,-193.80817868,0.00018609,2]
[365038444,1749420644524,-154.50231105,0.00018616,2]
[365038446,1749420644533,-195.98197426,0.00018616,2]
[365038448,1749420644542,-150.0,0.00018618,2]
[365038450,1749420644552,-500.0,0.00018621,2]
[365038452,1749420644561,-1000.0,0.00018621,2]
[365038454,1749420644571,-621.89343269,0.00018621,2]
[365038456,1749420644580,-1000.0,0.00018621,2]
[365038458,1749420644589,-1000.0,0.00018621,2]
[365038460,1749420644599,-299.20156299,0.00018624,2]
[365038462,1749420644609,-19943.41343525,0.00018624,2]
[365038464,1749420644618,-150.0,0.00018629,2]
[365038466,1749420644627,-154.50231105,0.00018633,2]
[365038468,1749420644637,-195.98197426,0.00018633,2]
[365038470,1749420644646,-150.0,0.00018642,2]
[365038472,1749420644655,-154.50231105,0.0001865,2]
[365038474,1749420644664,-195.98197426,0.0001865,2]
[365038475,1749420644673,-150.0,0.0001865,2]
[365038477,1749420644683,-150.0,0.0001865,2]
[365038479,1749420644692,-150.0,0.0001865,2]
[365038481,1749420644702,-480.0,0.00018658,2]
[365038483,1749420644712,-1396.94,0.00018658,2]
[365038485,1749420644722,-480.0,0.00018658,2]
[365038487,1749420644731,-832.39349,0.00018658,2]
[365038489,1749420644743,-832.39349,0.00018658,2]
[365038491,1749420644752,-6273.64,0.00018658,2]
[365038493,1749420644762,-480.0,0.00018658,2]
[365038495,1749420644771,-1338.26,0.00018658,2]
[365038497,1749420644782,-15380.32,0.00018658,2]
[365038499,1749420644793,-583.99814472,0.00018658,2]
[365038501,1749420644802,-480.0,0.00018658,2]
[365038503,1749420644812,-483.57,0.00018658,2]
[365038505,1749420644821,-881.16,0.00018658,2]
[365038507,1749420644831,-400.0,0.00018659,2]
[365038509,1749420644840,-400.0,0.00018659,2]
[365038511,1749420644849,-400.0,0.00018659,2]
[365038513,1749420644859,-400.0,0.00018659,2]
[365038515,1749420644868,-400.0,0.00018659,2]
[365038516,1749420644878,-400.0,0.00018659,2]
[365038518,1749420644888,-400.0,0.00018659,2]
[365038520,1749420644898,-400.0,0.00018659,2]
[365038522,1749420644908,-400.0,0.00018659,2]
[365038523,1749420644918,-400.0,0.00018659,2]
[365038524,1749420644927,-400.0,0.00018659,2]
[365038525,1749420644936,-400.0,0.00018659,2]
[365038526,1749420644945,-200.0,0.00018659,2]
[365038527,1749420644955,-200.0,0.00018659,2]
[365038528,1749420644964,-200.0,0.00018659,2]
[365038529,1749420644973,-200.0,0.00018659,2]
[365038530,1749420644982,-200.0,0.00018659,2]
[365038531,1749420644995,-200.0,0.00018659,2]
[365038532,1749420645005,-200.0,0.00018659,2]
[365038534,1749420645015,-400.0,0.00018659,2]
[365038535,1749420645024,-400.0,0.00018659,2]
[365038537,1749420645033,-400.0,0.00018659,2]
[365038538,1749420645043,-400.0,0.00018659,2]
[365038540,1749420645053,-400.0,0.00018659,2]
[365038542,1749420645062,-400.0,0.00018659,2]
[365038544,1749420645071,-400.0,0.00018659,2]
[365038546,1749420645081,-400.0,0.00018659,2]
[365038548,1749420645090,-400.0,0.00018659,2]
[365038550,1749420645102,-400.0,0.00018659,2]
[365038552,1749420645111,-400.0,0.00018659,2]
[365038554,1749420645121,-400.0,0.00018659,2]
[365038556,1749420645130,-400.0,0.00018659,2]
[365038558,1749420645139,-517.0,0.00018659,2]
[365038559,1749420645148,-200.0,0.00018659,2]
[365038561,1749420645157,-200.0,0.00018659,2]
[365038563,1749420645167,-200.0,0.00018659,2]
[365038565,1749420645177,-200.0,0.00018659,2]
[365038567,1749420645187,-200.0,0.00018659,2]
[365038569,1749420645196,-200.0,0.00018659,2]
[365038571,1749420645205,-200.0,0.00018659,2]
[365038573,1749420645215,-200.0,0.00018659,2]
[365038575,1749420645225,-200.0,0.00018659,2]
[365038577,1749420645234,-200.0,0.00018659,2]
[365038579,1749420645246,-200.0,0.00018659,2]
[365038581,1749420645256,-200.0,0.00018659,2]
[365038583,1749420645266,-200.0,0.00018659,2]
[365038585,1749420645276,-200.0,0.00018659,2]
[365038587,1749420645285,-232.0,0.00018659,2]
[365038589,1749420645295,-280.0,0.00018659,2]
[365038591,1749420645305,-3229.39297057,0.0001866,2]
[365038593,1749420645314,-150.0,0.00018663,2]
[365038595,1749420645324,-150.0,0.00018663,2]
[365038598,1749420645333,-150.0,0.00018663,2]
[365038599,1749420645343,-154.50231105,0.00018666,2]
[365038601,1749420645352,-195.98197426,0.00018666,2]
[365038603,1749420645362,-150.0,0.00018672,2]
[365038605,1749420645372,-150.0,0.00018682,2]
[365038608,1749420645382,-154.50231105,0.00018683,2]
[365038610,1749420645392,-195.98197426,0.00018683,2]
[365038613,1749420645402,-314.49261214,0.00018688,2]
[365038615,1749420645412,-500.0,0.00018691,2]
[365038617,1749420645421,-480.0,0.00018691,2]
[365038619,1749420645431,-626.5837466,0.00018691,2]
[365038622,1749420645445,-500.0,0.00018691,2]
[365038624,1749420645455,-544.32,0.00018691,2]
[365038627,1749420645469,-480.0,0.00018691,2]
[365038629,1749420645480,-480.0,0.00018691,2]
[365038630,1749420645502,-889.8,0.00018691,2]
[365038633,1749420645514,-480.0,0.00018691,2]
[365038635,1749420645524,-480.0,0.00018691,2]
[365038637,1749420645535,-538.66,0.00018691,2]
[365038639,1749420645544,-670.51,0.00018691,2]
[365038641,1749420645555,-329.10094761,0.00018691,2]
[365038643,1749420645565,-480.0,0.00018691,2]
[365038645,1749420645575,-480.0,0.00018691,2]
[365038647,1749420645586,-480.0,0.00018691,2]
[365038649,1749420645595,-1021.73,0.00018691,2]
[365038651,1749420645605,-480.0,0.00018691,2]
[365038653,1749420645615,-150.0,0.00018693,2]
[365038655,1749420645625,-150.0,0.00018694,2]
[365038657,1749420645634,-200.0,0.00018697,2]
[365038659,1749420645644,-200.0,0.00018697,2]
[365038661,1749420645654,-200.0,0.00018697,2]
[365038663,1749420645664,-200.0,0.00018697,2]
[365038665,1749420645674,-200.0,0.00018697,2]
[365038666,1749420645684,-200.0,0.00018697,2]
[365038668,1749420645693,-200.0,0.00018697,2]
[365038670,1749420645703,-278.0,0.00018697,2]
[365038672,1749420645713,-200.0,0.00018697,2]
[365038674,1749420645722,-200.0,0.00018697,2]
[365038676,1749420645732,-200.0,0.00018697,2]
[365038678,1749420645744,-200.0,0.00018697,2]
[365038680,1749420645754,-239.0,0.00018697,2]
[365038682,1749420645764,-996.7401,0.00018699,2]
[365038684,1749420645774,-1000.0,0.00018699,2]
[365038686,1749420645784,-1000.0,0.00018699,2]
[365038688,1749420645794,-1000.0,0.00018699,2]
[365038690,1749420645804,-832.39349,0.00018699,2]
[365038692,1749420645814,-832.393482,0.00018699,2]
[365038694,1749420645824,-3345.49,0.000187,2]
[365038696,1749420645834,-1507.06,0.000187,2]
[365038698,1749420645844,-163.65,0.000187,2]
[365038700,1749420645854,-1000.0,0.000187,6]
[365038702,1749420645864,-154.50231105,0.000187,2]
[365038704,1749420645874,-195.98197426,0.000187,2]
[365038706,1749420645884,-1749.3201093,0.00018708,2]
[365038708,1749420645893,-193.80817868,0.00018712,2]
[365038710,1749420645903,-150.0,0.00018714,2]
[365038712,1749420645913,-150.0,0.00018714,2]
[365038714,1749420645922,-150.0,0.00018714,2]
[365038716,1749420645932,-154.50231105,0.00018717,2]
[365038718,1749420645941,-195.98197426,0.00018717,2]
[365038720,1749420645951,-1000.0,0.00018721,2]
[365038722,1749420645961,-299.20156299,0.00018729,2]
[365038724,1749420645971,-154.50231105,0.00018734,2]
[365038726,1749420645981,-195.98197426,0.00018734,2]
[365038728,1749420645993,-150.0,0.00018736,2]
[365038730,1749420646003,-979.73,0.00018743,2]
[365038732,1749420646012,-480.0,0.00018743,2]
[365038734,1749420646023,-480.0,0.00018743,2]
[365038736,1749420646032,-964.33,0.00018743,2]
[365038738,1749420646042,-480.0,0.00018743,2]
[365038740,1749420646053,-163.95490246,0.00018743,2]
[365038742,1749420646063,-1390.97,0.00018743,2]
[365038744,1749420646073,-253.74090283,0.00018743,2]
[365038746,1749420646083,-150.0,0.00018747,2]
[365038748,1749420646093,-150.0,0.00018747,2]
[365038750,1749420646103,-150.0,0.00018747,2]
[365038752,1749420646113,-150.0,0.00018747,2]
[365038754,1749420646123,-150.0,0.00018747,2]
[365038756,1749420646133,-15399.87826842,0.00018749,2]
[365038758,1749420646143,-154.50231105,0.00018751,2]
[365038760,1749420646153,-195.98197426,0.00018751,2]
[365038762,1749420646163,-150.0,0.00018757,2]
[365038764,1749420646172,-150.0,0.00018767,2]
[365038766,1749420646182,-154.50231105,0.00018768,2]
[365038768,1749420646192,-195.98197426,0.00018768,2]
[365038770,1749420646202,-600.0,0.00018774,4]
[365038772,1749420646211,-300.0,0.00018774,2]
[365038774,1749420646221,-600.0,0.00018774,4]
[365038776,1749420646231,-250.0,0.00018774,2]
[365038778,1749420646244,-300.0,0.00018774,2]
[365038780,1749420646253,-150.0,0.00018774,2]
[365038782,1749420646264,-150.0,0.00018779,2]
[365038784,1749420646273,-150.0,0.00018779,2]
[365038786,1749420646283,-150.0,0.00018779,2]
[365038788,1749420646292,-154.50231105,0.00018785,2]
[365038790,1749420646302,-195.98197426,0.00018785,2]
[365038792,1749420646312,-215.0738,0.00018788,2]
[365038794,1749420646321,-150.0,0.00018799,2]
[365038796,1749420646330,-2100.0,0.000188,6]
[365038797,1749420646340,-150.0,0.000188,2]
[365038799,1749420646349,-154.50231105,0.00018801,2]
[365038801,1749420646359,-195.98197426,0.00018801,2]
[365038803,1749420646368,-11558.0481616,0.0001881,2]
[365038805,1749420646378,-150.0,0.00018811,2]
[365038807,1749420646387,-193.80817868,0.00018816,2]
[365038809,1749420646397,-154.50231105,0.00018818,2]
[365038811,1749420646407,-195.98197426,0.00018818,2]
[365038813,1749420646416,-509.00793203,0.00018821,2]
[365038815,1749420646427,-150.0,0.00018822,2]
[365038817,1749420646438,-480.0,0.00018823,2]
[365038820,1749420646451,-1396.94,0.00018823,2]
[365038823,1749420646461,-480.0,0.00018823,2]
[365038826,1749420646471,-6273.64,0.00018823,2]
[365038828,1749420646480,-480.0,0.00018823,2]
[365038830,1749420646502,-1338.26,0.00018823,2]
[365038832,1749420646511,-15380.32,0.00018823,2]
[365038834,1749420646521,-480.0,0.00018823,2]
[365038836,1749420646532,-483.57,0.00018823,2]
[365038838,1749420646542,-881.16,0.00018823,2]
[365038840,1749420646552,-299.20156299,0.00018835,2]
[365038842,1749420646561,-154.50231105,0.00018835,2]
[365038844,1749420646571,-195.98197426,0.00018835,2]
[365038846,1749420646580,-19943.41343525,0.00018837,2]
[365038848,1749420646590,-150.0,0.00018843,2]
[365038850,1749420646600,-150.0,0.00018843,2]
[365038852,1749420646609,-150.0,0.00018843,2]
[365038854,1749420646618,-150.0,0.00018851,2]
[365038856,1749420646628,-154.50231105,0.00018852,2]
[365038858,1749420646637,-195.98197426,0.00018852,2]
[365038860,1749420646646,-480.0,0.00018855,2]
[365038862,1749420646657,-544.32,0.00018855,2]
[365038863,1749420646666,-480.0,0.00018855,2]
[365038864,1749420646675,-480.0,0.00018855,2]
[365038866,1749420646685,-889.8,0.00018855,2]
[365038868,1749420646694,-384.25587018,0.00018855,2]
[365038870,1749420646704,-480.0,0.00018855,2]
[365038872,1749420646713,-538.66,0.00018855,2]
[365038873,1749420646723,-670.51,0.00018855,2]
[365038875,1749420646733,-480.0,0.00018855,2]
[365038877,1749420646743,-480.0,0.00018855,2]
[365038879,1749420646753,-480.0,0.00018855,2]
[365038881,1749420646762,-1021.73,0.00018855,2]
[365038883,1749420646775,-480.0,0.00018855,2]
[365038885,1749420646785,-150.0,0.00018864,2]
[365038887,1749420646795,-154.50231105,0.00018869,2]
[365038889,1749420646804,-195.98197426,0.00018869,2]
[365038891,1749420646814,-314.49261212,0.0001887,2]
[365038893,1749420646823,-500.0,0.00018873,2]
[365038895,1749420646832,-501.22197058,0.00018873,2]
[365038897,1749420646842,-500.0,0.00018873,2]
[365038899,1749420646851,-150.0,0.00018875,2]
[365038901,1749420646861,-154.50231105,0.00018886,2]
[365038903,1749420646870,-195.98197426,0.00018886,2]
[365038905,1749420646880,-150.0,0.00018886,2]
[365038907,1749420646890,-150.0,0.00018886,2]
[365038909,1749420646900,-656.80622018,0.00018899,2]
[365038911,1749420646909,-378.05458824,0.00018899,2]
[365038912,1749420646918,-160.83468594,0.00018899,2]
[365038914,1749420646929,-40000.0,0.000189,2]
[365038916,1749420646938,-3345.49,0.000189,2]
[365038918,1749420646948,-3345.49,0.000189,2]
[365038920,1749420646958,-1507.06,0.000189,2]
[365038922,1749420646968,-1507.06,0.000189,2]
[365038924,1749420646977,-524.38236026,0.000189,2]
[365038926,1749420646987,-3200.0,0.000189,6]
[365038928,1749420646996,-154.50231105,0.00018903,2]
[365038930,1749420647006,-195.98197426,0.00018903,2]
[365038932,1749420647015,-150.0,0.00018903,2]
[365038934,1749420647024,-979.73,0.00018907,2]
[365038935,1749420647033,-480.0,0.00018907,2]
[365038937,1749420647043,-480.0,0.00018907,2]
[365038939,1749420647052,-964.33,0.00018907,2]
[365038941,1749420647061,-480.0,0.00018907,2]
[365038943,1749420647071,-1390.97,0.00018907,2]
[365038945,1749420647081,-150.0,0.00018907,2]
[365038947,1749420647090,-150.0,0.00018907,2]
[365038949,1749420647100,-150.0,0.00018907,2]
[365038951,1749420647109,-154.50231105,0.0001892,2]
[365038953,1749420647120,-195.98197426,0.0001892,2]
[365038955,1749420647129,-193.80817868,0.0001892,2]
[365038957,1749420647139,-150.0,0.00018929,2]
[365038959,1749420647149,-154.50231105,0.00018936,2]
[365038960,1749420647158,-195.98197426,0.00018936,2]
[365038962,1749420647168,-150.0,0.00018939,2]
[365038964,1749420647177,-299.20156299,0.0001894,2]
[365038966,1749420647187,-15399.87826842,0.00018941,2]
[365038968,1749420647195,-150.0,0.0001895,2]
[365038970,1749420647204,-154.50231105,0.00018953,2]
[365038972,1749420647213,-195.98197426,0.00018953,2]
[365038974,1749420647222,-150.0,0.00018955,2]
[365038976,1749420647233,-150.0,0.00018955,2]
[365038978,1749420647243,-154.50231105,0.0001897,2]
[365038980,1749420647253,-195.98197426,0.0001897,2]
[365038982,1749420647262,-150.0,0.00018972,2]
[365038984,1749420647271,-150.0,0.00018972,2]
[365038986,1749420647280,-150.0,0.00018972,2]
[365038988,1749420647289,-500.89362683,0.00018973,2]